[Event "Titled Tuesday Blitz August 1 Late 2023"]
[White "Tikhonov, Viacheslav"]
[Black "Gaal, Zsoka"]
[WhiteFideId "44196407"]
[BlackFideId "777765"]
[WhiteElo "2540"]
[BlackElo "2472"]
[Result "0-1"]
[Round "10"]
[TimeControl "180+1"]
[Date "2023.08.01"]
[WhiteClock "0:00:02"]
[BlackClock "0:00:04"]
[Board "52"]

1. e4 {[%clk 0:03:00]}  Nf6 {[%clk 0:02:56]} 2. Nc3 {[%clk 0:02:56]}  d5 {[%clk 0:02:56]} 3. exd5 {[%clk 0:02:57]}  Nxd5 {[%clk 0:02:56]} 4. Nxd5 {[%clk 0:02:58]}  Qxd5 {[%clk 0:02:57]} 5. Qf3 {[%clk 0:02:59]}  Qxf3 {[%clk 0:02:57]} 6. Nxf3 {[%clk 0:03:00]}  g6 {[%clk 0:02:56]} 7. d4 {[%clk 0:02:59]}  Bg7 {[%clk 0:02:56]} 8. Bf4 {[%clk 0:02:57]}  c5 {[%clk 0:02:54]} 9. O-O-O {[%clk 0:02:41]}  cxd4 {[%clk 0:02:48]} 10. Nxd4 {[%clk 0:02:42]}  O-O {[%clk 0:02:48]} 11. Nb5 {[%clk 0:02:33]}  Nc6 {[%clk 0:02:48]} 12. Nc7 {[%clk 0:02:22]}  Rb8 {[%clk 0:02:48]} 13. Nd5 {[%clk 0:02:23]}  e5 {[%clk 0:02:48]} 14. Bg5 {[%clk 0:02:15]}  Be6 {[%clk 0:02:48]} 15. Be2 {[%clk 0:02:03]}  Nd4 {[%clk 0:02:48]} 16. Bc4 {[%clk 0:01:34]}  b5 {[%clk 0:02:37]} 17. Ne7+ {[%clk 0:01:33]}  Kh8 {[%clk 0:02:34]} 18. Bxe6 {[%clk 0:01:30]}  Nxe6 {[%clk 0:02:35]} 19. Be3 {[%clk 0:01:29]}  a6 {[%clk 0:02:28]} 20. Rd7 {[%clk 0:01:25]}  Rfd8 {[%clk 0:02:16]} 21. Rhd1 {[%clk 0:01:24]}  f5 {[%clk 0:02:16]} 22. Nc6 {[%clk 0:01:18]}  Rxd7 {[%clk 0:02:10]} 23. Rxd7 {[%clk 0:01:19]}  Rc8 {[%clk 0:02:07]} 24. Rd6 {[%clk 0:01:03]}  Nc7 {[%clk 0:01:42]} 25. Na7 {[%clk 0:00:56]}  Re8 {[%clk 0:01:35]} 26. f3 {[%clk 0:00:44]}  Kg8 {[%clk 0:01:22]} 27. Nc6 {[%clk 0:00:35]}  e4 {[%clk 0:01:21]} 28. f4 {[%clk 0:00:32]}  Re6 {[%clk 0:00:58]} 29. Rd8+ {[%clk 0:00:28]}  Re8 {[%clk 0:00:41]} 30. Rd7 {[%clk 0:00:28]}  Ne6 {[%clk 0:00:41]} 31. g3 {[%clk 0:00:25]}  Bf6 {[%clk 0:00:34]} 32. Nb4 {[%clk 0:00:22]}  Rd8 {[%clk 0:00:33]} 33. Rxd8+ {[%clk 0:00:16]}  Bxd8 {[%clk 0:00:27]} 34. Nxa6 {[%clk 0:00:17]}  g5 {[%clk 0:00:28]} 35. Nb4 {[%clk 0:00:14]}  gxf4 {[%clk 0:00:28]} 36. gxf4 {[%clk 0:00:14]}  Bc7 {[%clk 0:00:27]} 37. Nd5 {[%clk 0:00:15]}  Bd6 {[%clk 0:00:27]} 38. Kd2 {[%clk 0:00:11]}  Kf7 {[%clk 0:00:27]} 39. c3 {[%clk 0:00:10]}  Kg6 {[%clk 0:00:26]} 40. Ke2 {[%clk 0:00:08]}  Kh5 {[%clk 0:00:26]} 41. Kf2 {[%clk 0:00:05]}  Kg4 {[%clk 0:00:24]} 42. Nf6+ {[%clk 0:00:05]}  Kh3 {[%clk 0:00:23]} 43. Nxh7 {[%clk 0:00:05]}  Nxf4 {[%clk 0:00:20]} 44. Ng5+ {[%clk 0:00:03]}  Kxh2 {[%clk 0:00:20]} 45. Bxf4+ {[%clk 0:00:03]}  Bxf4 {[%clk 0:00:20]} 46. Ne6 {[%clk 0:00:03]}  Be5 {[%clk 0:00:12]} 47. Nd4 {[%clk 0:00:04]}  f4 {[%clk 0:00:07]} 48. Nxb5 {[%clk 0:00:03]}  f3 {[%clk 0:00:07]} 49. Nd4 {[%clk 0:00:03]}  Bg3+ {[%clk 0:00:08]} 50. Kf1 {[%clk 0:00:02]}  Kh3 {[%clk 0:00:04]} 51. c4 {[%clk 0:00:02]}  Kg4 {[%clk 0:00:04]} 52. c5 {[%clk 0:00:02]}  e3 {[%clk 0:00:04]} 53. c6 {[%clk 0:00:03]}  Be5 {[%clk 0:00:03]} 54. Ne2 {[%clk 0:00:02]}  fxe2+ {[%clk 0:00:03]} 55. Kxe2 {[%clk 0:00:03]}  Kf4 {[%clk 0:00:03]} 56. b4 {[%clk 0:00:02]}  Ke4 {[%clk 0:00:04]} 57. b5 {[%clk 0:00:03]}  Bc7 {[%clk 0:00:03]} 58. a4 {[%clk 0:00:03]}  Bb6 {[%clk 0:00:03]} 59. Kd1 {[%clk 0:00:02]}  Kd3 {[%clk 0:00:03]} 60. c7 {[%clk 0:00:02]}  Bxc7 {[%clk 0:00:03]} 61. Ke1 {[%clk 0:00:02]}  e2 {[%clk 0:00:02]} 62. b6 {[%clk 0:00:01]}  Bxb6 {[%clk 0:00:03]} 63. a5 {[%clk 0:00:01]}  Bxa5+ {[%clk 0:00:03]} 64. Kf2 {[%clk 0:00:01]}  e1=Q+ {[%clk 0:00:04]} 65. Kg2 {[%clk 0:00:02]}  Qe2+ {[%clk 0:00:03]} 66. Kh1 {[%clk 0:00:02]}  Bc7 {[%clk 0:00:03]} 67. Kg1 {[%clk 0:00:02]}  Ke3 {[%clk 0:00:02]} 68. Kh1 {[%clk 0:00:02]}  Kf3 {[%clk 0:00:03]} 69. Kg1 {[%clk 0:00:02]}  Qg2# {[%clk 0:00:04]} 0-1


[Site "https://www.chess.com"]

[Event "Titled Tuesday Blitz August 1 Late 2023"]
[White "Vovk, Orest"]
[Black "Kielinkei"]
[WhiteFideId "14113490"]
[WhiteElo "2524"]
[BlackElo "2436"]
[Result "1-0"]
[Round "10"]
[TimeControl "180+1"]
[Date "2023.08.01"]
[WhiteClock "0:00:35"]
[BlackClock "0:00:01"]
[Board "55"]

1. h4 {[%clk 0:02:53]}  e5 {[%clk 0:02:59]} 2. h5 {[%clk 0:02:53]}  d5 {[%clk 0:02:59]} 3. h6 {[%clk 0:02:52]}  Nxh6 {[%clk 0:02:58]} 4. d4 {[%clk 0:02:52]}  Nc6 {[%clk 0:02:45]} 5. Bxh6 {[%clk 0:02:51]}  gxh6 {[%clk 0:02:45]} 6. dxe5 {[%clk 0:02:51]}  Nxe5 {[%clk 0:02:45]} 7. Nf3 {[%clk 0:02:52]}  Nxf3+ {[%clk 0:02:42]} 8. gxf3 {[%clk 0:02:53]}  Bg7 {[%clk 0:02:38]} 9. Nc3 {[%clk 0:02:52]}  d4 {[%clk 0:02:31]} 10. Ne4 {[%clk 0:02:51]}  Bf5 {[%clk 0:02:23]} 11. Qd3 {[%clk 0:02:47]}  Qe7 {[%clk 0:02:13]} 12. Rh5 {[%clk 0:02:43]}  Qb4+ {[%clk 0:01:58]} 13. Qd2 {[%clk 0:01:51]}  Qxb2 {[%clk 0:01:47]} 14. Rd1 {[%clk 0:01:31]}  Bxe4 {[%clk 0:01:40]} 15. fxe4 {[%clk 0:01:28]}  d3 {[%clk 0:01:38]} 16. Rc5 {[%clk 0:01:27]}  O-O-O {[%clk 0:01:17]} 17. cxd3 {[%clk 0:01:10]}  Qb6 {[%clk 0:01:05]} 18. Bh3+ {[%clk 0:01:08]}  Kb8 {[%clk 0:01:05]} 19. Rdc1 {[%clk 0:01:07]}  Bd4 {[%clk 0:01:00]} 20. Rf5 {[%clk 0:00:55]}  f6 {[%clk 0:00:43]} 21. e3 {[%clk 0:00:54]}  Be5 {[%clk 0:00:41]} 22. Ke2 {[%clk 0:00:53]}  Rhg8 {[%clk 0:00:33]} 23. f4 {[%clk 0:00:52]}  Rg3 {[%clk 0:00:26]} 24. Bf1 {[%clk 0:00:48]}  Bd6 {[%clk 0:00:09]} 25. Rxf6 {[%clk 0:00:47]}  Qa6 {[%clk 0:00:03]} 26. Kf2 {[%clk 0:00:45]}  Rdg8 {[%clk 0:00:02]} 27. Qc2 {[%clk 0:00:39]}  Qb5 {[%clk 0:00:02]} 28. Rxd6 {[%clk 0:00:35]}  cxd6 {[%clk 0:00:01]} 29. Qc7+ {[%clk 0:00:35]} 1-0


[Site "https://www.chess.com"]

[Event "Titled Tuesday Blitz August 1 Late 2023"]
[White "Pesotskiy, Mikhail"]
[Black "Romero Pallares, Daniel"]
[WhiteFideId "34164453"]
[BlackFideId "32025637"]
[WhiteElo "2430"]
[BlackElo "2523"]
[Result "1-0"]
[Round "10"]
[TimeControl "180+1"]
[Date "2023.08.01"]
[WhiteClock "0:00:47"]
[BlackClock "0:01:29"]
[Board "57"]

1. d4 {[%clk 0:02:36]}  d6 {[%clk 0:03:00]} 2. c4 {[%clk 0:02:37]}  g6 {[%clk 0:02:59]} 3. e4 {[%clk 0:02:36]}  Bg7 {[%clk 0:03:00]} 4. Nc3 {[%clk 0:02:37]}  e5 {[%clk 0:03:00]} 5. d5 {[%clk 0:02:37]}  a5 {[%clk 0:03:00]} 6. Bd3 {[%clk 0:02:36]}  Na6 {[%clk 0:02:59]} 7. Nge2 {[%clk 0:02:25]}  Bd7 {[%clk 0:02:56]} 8. f3 {[%clk 0:02:13]}  Bh6 {[%clk 0:02:52]} 9. O-O {[%clk 0:02:11]}  Bxc1 {[%clk 0:02:50]} 10. Qxc1 {[%clk 0:02:12]}  f5 {[%clk 0:02:32]} 11. f4 {[%clk 0:02:00]}  Nc5 {[%clk 0:02:28]} 12. Bc2 {[%clk 0:02:00]}  Qe7 {[%clk 0:02:11]} 13. exf5 {[%clk 0:01:52]}  gxf5 {[%clk 0:02:09]} 14. fxe5 {[%clk 0:01:46]}  Qxe5 {[%clk 0:02:10]} 15. Qg5 {[%clk 0:01:41]}  Ne7 {[%clk 0:02:05]} 16. Qh5+ {[%clk 0:01:38]}  Kd8 {[%clk 0:01:58]} 17. Rae1 {[%clk 0:01:37]}  Qg7 {[%clk 0:01:52]} 18. Ng3 {[%clk 0:01:29]}  Rf8 {[%clk 0:01:47]} 19. Bxf5 {[%clk 0:01:22]}  Rg8 {[%clk 0:01:31]} 20. Bxd7 {[%clk 0:00:46]}  Nxd7 {[%clk 0:01:32]} 21. Rf7 {[%clk 0:00:46]}  Qd4+ {[%clk 0:01:30]} 22. Kh1 {[%clk 0:00:46]}  Ne5 {[%clk 0:01:30]} 23. Rxe7 {[%clk 0:00:47]}  Kxe7 {[%clk 0:01:29]} 24. Nf5+ {[%clk 0:00:47]} 1-0


[Site "https://www.chess.com"]

[Event "Titled Tuesday Blitz August 1 Late 2023"]
[White "Mike24147"]
[Black "Shapiro, Viktor"]
[BlackFideId "4175700"]
[WhiteElo "2407"]
[BlackElo "2544"]
[Result "0-1"]
[Round "10"]
[TimeControl "180+1"]
[Date "2023.08.01"]
[WhiteClock "0:00:00"]
[BlackClock "0:00:33"]
[Board "59"]

1. c4 {[%clk 0:02:57]}  Nf6 {[%clk 0:02:59]} 2. g3 {[%clk 0:02:55]}  c5 {[%clk 0:02:59]} 3. Bg2 {[%clk 0:02:55]}  Nc6 {[%clk 0:03:00]} 4. Nc3 {[%clk 0:02:55]}  g6 {[%clk 0:03:00]} 5. d3 {[%clk 0:02:55]}  Bg7 {[%clk 0:03:01]} 6. e4 {[%clk 0:02:55]}  O-O {[%clk 0:03:00]} 7. Nge2 {[%clk 0:02:54]}  d6 {[%clk 0:03:01]} 8. O-O {[%clk 0:02:52]}  a6 {[%clk 0:03:01]} 9. h3 {[%clk 0:02:52]}  Rb8 {[%clk 0:03:01]} 10. a4 {[%clk 0:02:53]}  Ne8 {[%clk 0:03:00]} 11. Be3 {[%clk 0:02:53]}  Nc7 {[%clk 0:03:00]} 12. d4 {[%clk 0:02:51]}  b6 {[%clk 0:03:00]} 13. Qd2 {[%clk 0:02:44]}  e5 {[%clk 0:02:58]} 14. d5 {[%clk 0:02:37]}  Na5 {[%clk 0:02:54]} 15. Qd3 {[%clk 0:02:32]}  Nb3 {[%clk 0:02:43]} 16. Ra3 {[%clk 0:02:30]}  Nd4 {[%clk 0:02:43]} 17. f4 {[%clk 0:02:27]}  b5 {[%clk 0:02:36]} 18. axb5 {[%clk 0:02:23]}  axb5 {[%clk 0:02:36]} 19. cxb5 {[%clk 0:02:15]}  Bd7 {[%clk 0:02:31]} 20. fxe5 {[%clk 0:02:09]}  dxe5 {[%clk 0:02:29]} 21. Qc4 {[%clk 0:01:55]}  Ncxb5 {[%clk 0:02:27]} 22. Ra2 {[%clk 0:01:47]}  Qe7 {[%clk 0:02:11]} 23. Re1 {[%clk 0:01:36]}  Rfc8 {[%clk 0:02:09]} 24. Kh2 {[%clk 0:01:35]}  Nd6 {[%clk 0:02:05]} 25. Qd3 {[%clk 0:01:30]}  Rb3 {[%clk 0:02:02]} 26. Ra7 {[%clk 0:01:24]}  Rxb2 {[%clk 0:01:53]} 27. Na4 {[%clk 0:01:22]}  Rb3 {[%clk 0:01:50]} 28. Qd2 {[%clk 0:01:09]}  Nc4 {[%clk 0:01:50]} 29. Qa2 {[%clk 0:01:02]}  Rxe3 {[%clk 0:01:19]} 30. Qxc4 {[%clk 0:00:58]}  Qd6 {[%clk 0:01:05]} 31. Rxd7 {[%clk 0:00:37]}  Qxd7 {[%clk 0:01:02]} 32. Nb6 {[%clk 0:00:37]}  Qd8 {[%clk 0:00:55]} 33. Nxc8 {[%clk 0:00:37]}  Qxc8 {[%clk 0:00:55]} 34. d6 {[%clk 0:00:24]}  Bf8 {[%clk 0:00:48]} 35. Rf1 {[%clk 0:00:19]}  Qe6 {[%clk 0:00:36]} 36. Qxe6 {[%clk 0:00:18]}  Nxe6 {[%clk 0:00:36]} 37. Ng1 {[%clk 0:00:03]}  Rd3 {[%clk 0:00:33]} 38. Nf3 {[%clk 0:00:00]}  Bxd6 {[%clk 0:00:33]} 0-1


[Site "https://www.chess.com"]

[Event "Titled Tuesday Blitz August 1 Late 2023"]
[White "Hirneise, Jens"]
[Black "Womacka, Mathias"]
[WhiteFideId "24614734"]
[BlackFideId "4611390"]
[WhiteElo "2465"]
[BlackElo "2530"]
[Result "1-0"]
[Round "10"]
[TimeControl "180+1"]
[Date "2023.08.01"]
[WhiteClock "0:00:05"]
[BlackClock "0:00:00"]
[Board "60"]

1. e4 {[%clk 0:02:27]}  c5 {[%clk 0:02:59]} 2. Nc3 {[%clk 0:02:25]}  Nc6 {[%clk 0:02:58]} 3. Bb5 {[%clk 0:02:25]}  Nd4 {[%clk 0:02:57]} 4. a4 {[%clk 0:02:25]}  e6 {[%clk 0:02:54]} 5. Nf3 {[%clk 0:02:25]}  a6 {[%clk 0:02:48]} 6. Bd3 {[%clk 0:02:23]}  Nxf3+ {[%clk 0:02:29]} 7. Qxf3 {[%clk 0:02:24]}  Ne7 {[%clk 0:02:29]} 8. O-O {[%clk 0:02:23]}  Nc6 {[%clk 0:02:28]} 9. Qg3 {[%clk 0:02:23]}  g6 {[%clk 0:02:16]} 10. f4 {[%clk 0:02:23]}  Bg7 {[%clk 0:02:10]} 11. e5 {[%clk 0:02:13]}  d6 {[%clk 0:02:10]} 12. exd6 {[%clk 0:02:09]}  Qxd6 {[%clk 0:02:10]} 13. Ne4 {[%clk 0:02:10]}  Qe7 {[%clk 0:02:03]} 14. c3 {[%clk 0:01:47]}  O-O {[%clk 0:02:02]} 15. Qf2 {[%clk 0:01:46]}  b6 {[%clk 0:02:01]} 16. Bc2 {[%clk 0:01:35]}  Bb7 {[%clk 0:02:00]} 17. d3 {[%clk 0:01:35]}  Rad8 {[%clk 0:01:55]} 18. Be3 {[%clk 0:01:35]}  f5 {[%clk 0:01:50]} 19. Ng5 {[%clk 0:01:33]}  h6 {[%clk 0:01:47]} 20. Nf3 {[%clk 0:01:33]}  e5 {[%clk 0:01:46]} 21. fxe5 {[%clk 0:01:31]}  Nxe5 {[%clk 0:01:46]} 22. Nxe5 {[%clk 0:01:30]}  Qxe5 {[%clk 0:01:46]} 23. Bf4 {[%clk 0:01:24]}  Qd5 {[%clk 0:01:39]} 24. Rae1 {[%clk 0:01:09]}  Rde8 {[%clk 0:01:33]} 25. Rxe8 {[%clk 0:01:08]}  Rxe8 {[%clk 0:01:34]} 26. Bd2 {[%clk 0:00:59]}  Kh7 {[%clk 0:01:24]} 27. Re1 {[%clk 0:00:58]}  Rxe1+ {[%clk 0:01:22]} 28. Bxe1 {[%clk 0:00:59]}  b5 {[%clk 0:01:14]} 29. axb5 {[%clk 0:00:59]}  axb5 {[%clk 0:01:15]} 30. Qe2 {[%clk 0:00:54]}  b4 {[%clk 0:01:11]} 31. h4 {[%clk 0:00:44]}  bxc3 {[%clk 0:01:06]} 32. bxc3 {[%clk 0:00:44]}  f4 {[%clk 0:00:59]} 33. h5 {[%clk 0:00:40]}  Qxh5 {[%clk 0:00:52]} 34. Qxh5 {[%clk 0:00:38]}  gxh5 {[%clk 0:00:53]} 35. d4+ {[%clk 0:00:39]}  Kg8 {[%clk 0:00:50]} 36. dxc5 {[%clk 0:00:40]}  Kf7 {[%clk 0:00:41]} 37. Bf5 {[%clk 0:00:35]}  Bc6 {[%clk 0:00:26]} 38. Bd2 {[%clk 0:00:28]}  Be5 {[%clk 0:00:26]} 39. Kf2 {[%clk 0:00:24]}  Kf6 {[%clk 0:00:25]} 40. Bd3 {[%clk 0:00:22]}  Ke6 {[%clk 0:00:19]} 41. Bc4+ {[%clk 0:00:20]}  Ke7 {[%clk 0:00:18]} 42. Be2 {[%clk 0:00:18]}  Ke6 {[%clk 0:00:15]} 43. Bxh5 {[%clk 0:00:12]}  Kd5 {[%clk 0:00:15]} 44. Bf3+ {[%clk 0:00:12]}  Kxc5 {[%clk 0:00:15]} 45. Bxc6 {[%clk 0:00:13]}  Kxc6 {[%clk 0:00:16]} 46. Kf3 {[%clk 0:00:14]}  h5 {[%clk 0:00:13]} 47. Ke4 {[%clk 0:00:10]}  Bg7 {[%clk 0:00:11]} 48. c4 {[%clk 0:00:10]}  Kc5 {[%clk 0:00:11]} 49. Kd3 {[%clk 0:00:10]}  Be5 {[%clk 0:00:11]} 50. Be1 {[%clk 0:00:08]}  Bf6 {[%clk 0:00:07]} 51. Bf2+ {[%clk 0:00:08]}  Kd6 {[%clk 0:00:07]} 52. Ke4 {[%clk 0:00:08]}  Bg5 {[%clk 0:00:06]} 53. Kf5 {[%clk 0:00:07]}  Bh6 {[%clk 0:00:06]} 54. Ke4 {[%clk 0:00:07]}  Ke6 {[%clk 0:00:06]} 55. c5 {[%clk 0:00:07]}  Bg5 {[%clk 0:00:05]} 56. Be1 {[%clk 0:00:07]}  h4 {[%clk 0:00:05]} 57. Bf2 {[%clk 0:00:07]}  Kd7 {[%clk 0:00:03]} 58. Kf5 {[%clk 0:00:07]}  Be7 {[%clk 0:00:03]} 59. Kxf4 {[%clk 0:00:07]}  Kc6 {[%clk 0:00:03]} 60. Kg4 {[%clk 0:00:07]}  Kd5 {[%clk 0:00:03]} 61. Kf5 {[%clk 0:00:06]}  Bf8 {[%clk 0:00:03]} 62. Kg4 {[%clk 0:00:06]}  Be7 {[%clk 0:00:03]} 63. Kh3 {[%clk 0:00:06]}  Bf6 {[%clk 0:00:02]} 64. Bxh4 {[%clk 0:00:05]}  Bd4 {[%clk 0:00:02]} 65. Be7 {[%clk 0:00:05]}  Ke6 {[%clk 0:00:03]} 66. Bd6 {[%clk 0:00:04]}  Kf5 {[%clk 0:00:02]} 67. Kg3 {[%clk 0:00:04]}  Kg6 {[%clk 0:00:02]} 68. Kf3 {[%clk 0:00:05]}  Kf5 {[%clk 0:00:01]} 69. g4+ {[%clk 0:00:05]}  Ke6 {[%clk 0:00:02]} 70. Ke4 {[%clk 0:00:05]}  Bf2 {[%clk 0:00:02]} 71. Kf4 {[%clk 0:00:05]}  Bg1 {[%clk 0:00:00]} 72. Kf3 {[%clk 0:00:05]} 1-0


[Site "https://www.chess.com"]

[Event "Titled Tuesday Blitz August 1 Late 2023"]
[White "Arnold, Ken"]
[Black "Fiorito, Francisco"]
[WhiteFideId "2056836"]
[BlackFideId "180165"]
[WhiteElo "2433"]
[BlackElo "2522"]
[Result "0-1"]
[Round "10"]
[TimeControl "180+1"]
[Date "2023.08.01"]
[WhiteClock "0:02:30"]
[BlackClock "0:02:33"]
[Board "62"]

1. d4 {[%clk 0:03:00]}  a6 {[%clk 0:02:56]} 2. e4 {[%clk 0:03:00]}  b5 {[%clk 0:02:55]} 3. Bd3 {[%clk 0:03:00]}  Bb7 {[%clk 0:02:53]} 4. Ne2 {[%clk 0:02:59]}  e6 {[%clk 0:02:52]} 5. O-O {[%clk 0:02:59]}  Nf6 {[%clk 0:02:50]} 6. Ng3 {[%clk 0:02:56]}  d5 {[%clk 0:02:50]} 7. e5 {[%clk 0:02:56]}  Nfd7 {[%clk 0:02:51]} 8. c3 {[%clk 0:02:55]}  c5 {[%clk 0:02:51]} 9. Kh1 {[%clk 0:02:55]}  Nc6 {[%clk 0:02:52]} 10. Be3 {[%clk 0:02:55]}  Qb6 {[%clk 0:02:49]} 11. dxc5 {[%clk 0:02:54]}  Bxc5 {[%clk 0:02:49]} 12. Bxc5 {[%clk 0:02:51]}  Nxc5 {[%clk 0:02:50]} 13. f4 {[%clk 0:02:50]}  O-O-O {[%clk 0:02:38]} 14. Ne2 {[%clk 0:02:48]}  d4 {[%clk 0:02:36]} 15. c4 {[%clk 0:02:30]}  Nb4 {[%clk 0:02:33]} 0-1


[Site "https://www.chess.com"]

[Event "Titled Tuesday Blitz August 1 Late 2023"]
[White "Bueno, Alfeu Junior Varela"]
[Black "Nanu, Costica-Ciprian"]
[WhiteFideId "2108879"]
[BlackFideId "1204580"]
[WhiteElo "2396"]
[BlackElo "2488"]
[Result "1-0"]
[Round "10"]
[TimeControl "180+1"]
[Date "2023.08.01"]
[WhiteClock "0:00:23"]
[BlackClock "0:00:00"]
[Board "64"]

1. e4 {[%clk 0:03:00]}  c5 {[%clk 0:02:59]} 2. Nc3 {[%clk 0:02:59]}  g6 {[%clk 0:02:59]} 3. f4 {[%clk 0:03:00]}  Bg7 {[%clk 0:02:59]} 4. Nf3 {[%clk 0:03:01]}  Nc6 {[%clk 0:02:59]} 5. Bb5 {[%clk 0:03:01]}  Nd4 {[%clk 0:02:58]} 6. O-O {[%clk 0:03:01]}  Nxb5 {[%clk 0:02:58]} 7. Nxb5 {[%clk 0:03:02]}  a6 {[%clk 0:02:59]} 8. Nc3 {[%clk 0:03:02]}  d6 {[%clk 0:02:59]} 9. d3 {[%clk 0:03:01]}  e6 {[%clk 0:02:58]} 10. Be3 {[%clk 0:02:56]}  Ne7 {[%clk 0:02:59]} 11. d4 {[%clk 0:02:57]}  b6 {[%clk 0:02:58]} 12. dxc5 {[%clk 0:02:52]}  dxc5 {[%clk 0:02:58]} 13. Qxd8+ {[%clk 0:02:51]}  Kxd8 {[%clk 0:02:59]} 14. Ne5 {[%clk 0:02:51]}  Rf8 {[%clk 0:02:53]} 15. Rad1+ {[%clk 0:02:47]}  Kc7 {[%clk 0:02:53]} 16. a4 {[%clk 0:02:45]}  Bb7 {[%clk 0:02:53]} 17. a5 {[%clk 0:02:41]}  Bxe5 {[%clk 0:02:21]} 18. axb6+ {[%clk 0:02:35]}  Kxb6 {[%clk 0:02:17]} 19. fxe5 {[%clk 0:02:36]}  Bc6 {[%clk 0:02:16]} 20. Rd6 {[%clk 0:02:30]}  Nc8 {[%clk 0:02:01]} 21. Rd2 {[%clk 0:02:18]}  a5 {[%clk 0:01:47]} 22. Rfd1 {[%clk 0:02:09]}  Na7 {[%clk 0:01:31]} 23. Rd6 {[%clk 0:02:01]}  Nc8 {[%clk 0:01:30]} 24. Rd8 {[%clk 0:02:00]}  Ne7 {[%clk 0:01:22]} 25. R8d6 {[%clk 0:01:53]}  Nc8 {[%clk 0:01:22]} 26. Na4+ {[%clk 0:01:46]}  Kb5 {[%clk 0:01:19]} 27. R6d3 {[%clk 0:01:31]}  Bxe4 {[%clk 0:01:04]} 28. Rb3+ {[%clk 0:01:08]}  Kc6 {[%clk 0:01:00]} 29. Rc3 {[%clk 0:01:08]}  Bd5 {[%clk 0:00:25]} 30. Nxc5 {[%clk 0:01:02]}  Kb5 {[%clk 0:00:20]} 31. Nd7 {[%clk 0:00:38]}  Rd8 {[%clk 0:00:18]} 32. Rc5+ {[%clk 0:00:38]}  Ka6 {[%clk 0:00:18]} 33. Rc7 {[%clk 0:00:31]}  Na7 {[%clk 0:00:05]} 34. c4 {[%clk 0:00:28]}  Bc6 {[%clk 0:00:03]} 35. Nc5+ {[%clk 0:00:23]}  Kb6 {[%clk 0:00:03]} 36. Nxe6+ {[%clk 0:00:23]}  Ka6 {[%clk 0:00:04]} 37. Rxd8 {[%clk 0:00:22]}  Rxd8 {[%clk 0:00:00]} 38. Nxd8 {[%clk 0:00:23]} 1-0


[Site "https://www.chess.com"]

[Event "Titled Tuesday Blitz August 1 Late 2023"]
[White "ExchangeAB"]
[Black "Hacker, Jonas"]
[BlackFideId "1270968"]
[WhiteElo "2487"]
[BlackElo "2366"]
[Result "0-1"]
[Round "10"]
[TimeControl "180+1"]
[Date "2023.08.01"]
[WhiteClock "0:02:16"]
[BlackClock "0:01:13"]
[Board "65"]

1. d4 {[%clk 0:03:00]}  Nf6 {[%clk 0:02:58]} 2. Nc3 {[%clk 0:03:00]}  d5 {[%clk 0:02:58]} 3. Bf4 {[%clk 0:03:00]}  c5 {[%clk 0:02:58]} 4. e3 {[%clk 0:03:00]}  cxd4 {[%clk 0:02:58]} 5. exd4 {[%clk 0:03:01]}  a6 {[%clk 0:02:58]} 6. Nf3 {[%clk 0:03:01]}  Nc6 {[%clk 0:02:53]} 7. Ne5 {[%clk 0:03:01]}  Qb6 {[%clk 0:02:53]} 8. Nxc6 {[%clk 0:03:00]}  Qxc6 {[%clk 0:02:52]} 9. Bd3 {[%clk 0:02:57]}  Bg4 {[%clk 0:02:50]} 10. Ne2 {[%clk 0:02:56]}  Bh5 {[%clk 0:02:44]} 11. O-O {[%clk 0:02:55]}  e6 {[%clk 0:02:43]} 12. c3 {[%clk 0:02:55]}  Bg6 {[%clk 0:02:42]} 13. Be5 {[%clk 0:02:51]}  Be7 {[%clk 0:02:41]} 14. Nf4 {[%clk 0:02:51]}  Bxd3 {[%clk 0:02:41]} 15. Nxd3 {[%clk 0:02:52]}  O-O {[%clk 0:02:38]} 16. a4 {[%clk 0:02:51]}  Nd7 {[%clk 0:02:34]} 17. Qh5 {[%clk 0:02:44]}  Bf6 {[%clk 0:02:27]} 18. Bf4 {[%clk 0:02:41]}  g6 {[%clk 0:02:23]} 19. Qf3 {[%clk 0:02:40]}  Bg7 {[%clk 0:02:22]} 20. h4 {[%clk 0:02:40]}  h5 {[%clk 0:02:11]} 21. Bg5 {[%clk 0:02:38]}  Rfe8 {[%clk 0:02:00]} 22. Rfe1 {[%clk 0:02:39]}  e5 {[%clk 0:01:56]} 23. dxe5 {[%clk 0:02:38]}  Nxe5 {[%clk 0:01:55]} 24. Nxe5 {[%clk 0:02:39]}  Bxe5 {[%clk 0:01:54]} 25. Rad1 {[%clk 0:02:38]}  d4 {[%clk 0:01:20]} 26. Qxc6 {[%clk 0:02:33]}  bxc6 {[%clk 0:01:21]} 27. cxd4 {[%clk 0:02:32]}  Bg7 {[%clk 0:01:21]} 28. Rxe8+ {[%clk 0:02:29]}  Rxe8 {[%clk 0:01:21]} 29. d5 {[%clk 0:02:26]}  cxd5 {[%clk 0:01:18]} 30. Rxd5 {[%clk 0:02:27]}  Bxb2 {[%clk 0:01:16]} 31. Rd6 {[%clk 0:02:16]}  Re1+ {[%clk 0:01:13]} 0-1


[Site "https://www.chess.com"]

[Event "Titled Tuesday Blitz August 1 Late 2023"]
[White "Goltsev, Dmitry"]
[Black "Stachanczyk, Jacek"]
[WhiteFideId "24176710"]
[BlackFideId "1116657"]
[WhiteElo "2627"]
[BlackElo "2396"]
[Result "1/2-1/2"]
[Round "10"]
[TimeControl "180+1"]
[Date "2023.08.01"]
[WhiteClock "0:00:05"]
[BlackClock "0:01:01"]
[Board "68"]

1. e4 {[%clk 0:03:00]}  c5 {[%clk 0:02:58]} 2. Nf3 {[%clk 0:03:01]}  d6 {[%clk 0:02:58]} 3. d4 {[%clk 0:03:02]}  cxd4 {[%clk 0:02:59]} 4. Nxd4 {[%clk 0:03:03]}  Nf6 {[%clk 0:03:00]} 5. Nc3 {[%clk 0:03:03]}  g6 {[%clk 0:03:00]} 6. Be2 {[%clk 0:03:03]}  Bg7 {[%clk 0:03:00]} 7. h4 {[%clk 0:03:04]}  O-O {[%clk 0:03:01]} 8. h5 {[%clk 0:03:04]}  Nc6 {[%clk 0:02:54]} 9. hxg6 {[%clk 0:03:03]}  hxg6 {[%clk 0:02:54]} 10. Be3 {[%clk 0:02:59]}  Nxd4 {[%clk 0:02:49]} 11. Bxd4 {[%clk 0:03:00]}  Be6 {[%clk 0:02:49]} 12. Qd2 {[%clk 0:02:59]}  Qa5 {[%clk 0:02:47]} 13. O-O-O {[%clk 0:02:57]}  Rfc8 {[%clk 0:02:47]} 14. a3 {[%clk 0:02:50]}  Rab8 {[%clk 0:02:42]} 15. Kb1 {[%clk 0:02:50]}  b5 {[%clk 0:02:41]} 16. Nd5 {[%clk 0:02:27]}  Qxd2 {[%clk 0:02:34]} 17. Nxf6+ {[%clk 0:02:27]}  Bxf6 {[%clk 0:02:32]} 18. Rxd2 {[%clk 0:02:28]}  Bxd4 {[%clk 0:02:31]} 19. Rxd4 {[%clk 0:02:28]}  Kg7 {[%clk 0:02:25]} 20. f4 {[%clk 0:02:23]}  a5 {[%clk 0:02:23]} 21. g4 {[%clk 0:02:23]}  Kf6 {[%clk 0:02:01]} 22. g5+ {[%clk 0:02:18]}  Kg7 {[%clk 0:02:01]} 23. Rdd1 {[%clk 0:02:08]}  b4 {[%clk 0:01:57]} 24. a4 {[%clk 0:02:08]}  b3 {[%clk 0:01:40]} 25. c3 {[%clk 0:02:06]}  Bd7 {[%clk 0:01:38]} 26. e5 {[%clk 0:01:55]}  Bf5+ {[%clk 0:01:36]} 27. Ka1 {[%clk 0:01:42]}  dxe5 {[%clk 0:01:33]} 28. fxe5 {[%clk 0:01:41]}  Rc5 {[%clk 0:01:31]} 29. Rh2 {[%clk 0:01:35]}  Rh8 {[%clk 0:01:27]} 30. Rxh8 {[%clk 0:01:20]}  Kxh8 {[%clk 0:01:28]} 31. Bf1 {[%clk 0:00:14]}  Rxe5 {[%clk 0:01:25]} 32. Bc4 {[%clk 0:00:15]}  Bc2 {[%clk 0:01:24]} 33. Rf1 {[%clk 0:00:14]}  Kg7 {[%clk 0:01:24]} 34. Rxf7+ {[%clk 0:00:14]}  Kh8 {[%clk 0:01:23]} 35. Rf8+ {[%clk 0:00:13]}  Kg7 {[%clk 0:01:21]} 36. Rf7+ {[%clk 0:00:13]}  Kh8 {[%clk 0:01:02]} 37. Rf8+ {[%clk 0:00:12]}  Kh7 {[%clk 0:01:03]} 38. Rf7+ {[%clk 0:00:05]}  Kh8 {[%clk 0:01:01]} 1/2-1/2


[Site "https://www.chess.com"]